[Event "9th Bangabandhu Blitz Men 2021"]
[Site "Dhaka"]
[Date "2021.04.03"]
[Round "2.8"]
[White "Uddin, Saif"]
[Black "Asaduzzaman, Ahad"]
[Result "1/2-1/2"]
[ECO "A23"]
[WhiteElo "1894"]
[BlackElo "1742"]
[Annotator "NA RC"]
[PlyCount "49"]
[EventDate "2021.04.02"]
[EventType "swiss"]
[EventCountry "BAN"]
[SourceTitle "playchess.com"]
[Source "ChessBase"]
[SourceQuality "1"]
[TimeControl "1500+10"]

1. c4 {[%emt 0:22:08]} e5 {[%emt 0:22:11]} 2. g3 {[%emt 0:00:10]} Nf6 {[%emt 0:00:13]} 3. Bg2 {[%emt 0:00:09]} c6 {[%emt 0:00:12]} 4. Nc3 {[%emt 0:00:24]} d5 {[%emt 0:00:10]} 5. cxd5 {[%emt 0:00:10]} cxd5 {[%emt 0:00:09]} 6. Qb3 {[%emt 0:00:11]} Nc6 {[%emt 0:00:16]} 7. Nxd5 {[%emt 0:00:16]} Nd4 {[%emt 0:00:14]} 8. Nxf6+ {[%emt 0:00:22]} Qxf6 {[%emt 0:00:29]} 9. Qd1 {[%emt 0:00:17]} Bf5 {[%emt 0:00:18]} 10. e4 {[%emt 0:00:24]} Be6 {[%emt 0:00:44]} 11. Nf3 {[%emt 0:00:44]} Bg4 {[%emt 0:00:14]} 12. Qa4+ {[%emt 0:00:18]} b5 {[%emt 0:00:11]} 13. Qa5 {[%emt 0:00:17]} Bxf3 {[%emt 0:00:24]} 14. O-O {[%emt 0:00:24]} Bxg2 {[%emt 0:00:17]} 15. Kxg2 {[%emt 0:00:11]} Qf3+ {[%emt 0:00:25]} 16. Kh3 {[%emt 0:00:09]} Bc5 {[%emt 0:00:15]} 17. a4 {[%emt 0:00:17]} O-O {[%emt 0:00:16]} 18. d3 {[%emt 0:00:43]} Nb3 {[%emt 0:00:20]} 19. Qc3 {[%emt 0:00:14]} Nxa1 {[%emt 0:00:18]} 20. Qxc5 {[%emt 0:00:09]} Nb3 {[%emt 0:00:14]} 21. Qxe5 {[%emt 0:00:18]} Nxc1 {[%emt 0:00:10]} 22. Rxc1 {[%emt 0:00:09]} Qxf2 {[%emt 0:00:12]} 23. axb5 {[%emt 0:00:10]} Rae8 {[%emt 0:00:12]} 24. Qg5 {[%emt 0:00:22]} Re6 {[%emt 0:00:11]} 25. Rc6 {[%emt 0:00:14]} 1/2-1/2

[Event "9th Bangabandhu Blitz Men 2021"]
[Site "Dhaka"]
[Date "2021.04.03"]
[Round "3.1"]
[White "Islam, Khandaker Aminul"]
[Black "Reefat, Bin-Sattar"]
[Result "0-1"]
[ECO "D02"]
[WhiteElo "2210"]
[BlackElo "2401"]
[Annotator "NA"]
[PlyCount "48"]
[EventDate "2021.04.02"]
[EventType "swiss"]
[EventCountry "BAN"]
[SourceTitle "playchess.com"]
[Source "ChessBase"]
[SourceQuality "1"]
[TimeControl "1500+10"]

1. Nf3 {[%emt 0:22:08]} d5 {[%emt 0:22:08]} 2. d4 {[%emt 0:00:11]} Nf6 {[%emt 0:00:14]} 3. Bf4 {[%emt 0:00:09]} c5 {[%emt 0:00:26]} 4. e3 {[%emt 0:00:09]} Nc6 {[%emt 0:00:12]} 5. Nbd2 {[%emt 0:00:10]} cxd4 {[%emt 0:00:15]} 6. exd4 {[%emt 0:00:09]} Qb6 {[%emt 0:00:10]} 7. Nb3 {[%emt 0:00:11]} Bg4 {[%emt 0:00:19]} 8. h3 {[%emt 0:00:18]} Bxf3 {[%emt 0:00:12]} 9. Qxf3 {[%emt 0:00:10]} e6 {[%emt 0:00:08]} 10. c3 {[%emt 0:00:58]} a5 {[%emt 0:00:22]} 11. Qe2 {[%emt 0:00:10]} a4 {[%emt 0:00:15]} 12. Nc1 {[%emt 0:00:10]} a3 {[%emt 0:00:31]} 13. b3 {[%emt 0:00:09]} Ne4 {[%emt 0:00:09]} 14. Bd2 {[%emt 0:00:09]} Bd6 {[%emt 0:00:17]} 15. Nd3 {[%emt 0:00:10]} Rc8 {[%emt 0:01:52]} 16. Rc1 {[%emt 0:00:34]} O-O {[%emt 0:00:00]} 17. g3 {[%emt 0:00:20]} e5 {[%emt 0:00:00]} 18. dxe5 {[%emt 0:00:20]} Nxe5 {[%emt 0:00:00]} 19. Be3 {[%emt 0:00:28]} d4 {[%emt 0:00:00]} 20. Bxd4 {[%emt 0:00:19]} Qxd4 {[%emt 0:00:00]} 21. cxd4 {[%emt 0:00:10]} Nxd3+ {[%emt 0:00:04]} 22. Qxd3 {[%emt 0:00:13]} Rxc1+ {[%emt 0:00:00]} 23. Ke2 {[%emt 0:00:09]} Re8 {[%emt 0:00:00]} 24. Bg2 {[%emt 0:01:01]} Nc5+ {[%emt 0:00:10]} 0-1

[Event "9th Bangabandhu Blitz Men 2021"]
[Site "Dhaka"]
[Date "2021.04.03"]
[Round "3.2"]
[White "Hossain, Enamul"]
[Black "Rahman, Taibur"]
[Result "1-0"]
[ECO "B22"]
[WhiteElo "2404"]
[BlackElo "2189"]
[Annotator "NA"]
[PlyCount "52"]
[EventDate "2021.04.02"]
[EventType "swiss"]
[EventCountry "BAN"]
[SourceTitle "playchess.com"]
[Source "ChessBase"]
[SourceQuality "1"]
[TimeControl "1500+10"]

1. e4 {[%emt 0:22:08]} c5 {[%emt 0:22:07]} 2. Nf3 {[%emt 0:00:09]} Nc6 {[%emt 0:00:10]} 3. c3 {[%emt 0:00:14]} Nf6 {[%emt 0:00:10]} 4. e5 {[%emt 0:00:10]} Nd5 {[%emt 0:00:08]} 5. Bc4 {[%emt 0:00:09]} e6 {[%emt 0:00:10]} 6. d4 {[%emt 0:00:12]} cxd4 {[%emt 0:00:10]} 7. cxd4 {[%emt 0:00:10]} d6 {[%emt 0:00:09]} 8. O-O {[%emt 0:00:11]} Be7 {[%emt 0:00:14]} 9. Qe2 {[%emt 0:00:17]} O-O {[%emt 0:00:31]} 10. Nc3 {[%emt 0:00:19]} Nxc3 {[%emt 0:00:23]} 11. bxc3 {[%emt 0:00:09]} Bd7 {[%emt 0:00:40]} 12. Rb1 {[%emt 0:00:22]} dxe5 {[%emt 0:00:39]} 13. dxe5 {[%emt 0:00:12]} Na5 {[%emt 0:00:21]} 14. Bd3 {[%emt 0:00:18]} Bc6 {[%emt 0:00:11]} 15. Nd4 {[%emt 0:00:41]} Bd5 {[%emt 0:00:24]} 16. f4 {[%emt 0:00:28]} Rc8 {[%emt 0:00:22]} 17. Bd2 {[%emt 0:00:11]} Nc4 {[%emt 0:00:15]} 18. f5 {[%emt 0:00:14]} Nxd2 {[%emt 0:00:21]} 19. Qxd2 {[%emt 0:00:09]} exf5 {[%emt 0:00:12]} 20. Bxf5 {[%emt 0:00:19]} Rc7 {[%emt 0:00:20]} 21. Bc2 {[%emt 0:00:21]} Bg5 {[%emt 0:00:20]} 22. Qd3 {[%emt 0:00:09]} g6 {[%emt 0:00:09]} 23. Bb3 {[%emt 0:00:09]} Bxb3 {[%emt 0:00:10]} 24. axb3 {[%emt 0:00:10]} Qe7 {[%emt 0:00:11]} 25. Rbe1 {[%emt 0:00:14]} Rfc8 {[%emt 0:00:12]} 26. Nb5 {[%emt 0:00:21]} Rc5 {[%emt 0:00:00]} 1-0

[Event "9th Bangabandhu Blitz Men 2021"]
[Site "Dhaka"]
[Date "2021.04.03"]
[Round "3.4"]
[White "Anata, Choudhury"]
[Black "Mohammad Fahad, Rahman"]
[Result "0-1"]
[ECO "B51"]
[WhiteElo "2184"]
[BlackElo "2321"]
[Annotator "ChessBase"]
[PlyCount "144"]
[EventDate "2021.04.02"]
[EventType "swiss"]
[EventCountry "BAN"]
[SourceTitle "playchess.com"]
[Source "ChessBase"]
[SourceQuality "1"]
[TimeControl "1500+10"]

1. e4 {[%emt 0:22:08]} c5 {[%emt 0:22:07]} 2. Nf3 {[%emt 0:00:09]} d6 {[%emt 0:00:09]} 3. Bb5+ {[%emt 0:00:10]} Nd7 {[%emt 0:00:12]} 4. d4 {[%emt 0:00:09]} cxd4 {[%emt 0:00:17]} 5. Qxd4 {[%emt 0:00:10]} Ngf6 {[%emt 0:00:17]} 6. O-O {[%emt 0:00:12]} e5 {[%emt 0:00:11]} 7. Qd3 {[%emt 0:00:10]} Be7 {[%emt 0:00:10]} 8. Bg5 {[%emt 0:00:29]} O-O {[%emt 0:00:11]} 9. Bxd7 {[%emt 0:00:14]} Nxd7 {[%emt 0:00:13]} 10. Bxe7 {[%emt 0:00:10]} Qxe7 {[%emt 0:00:09]} 11. Nc3 {[%emt 0:00:10]} Nc5 {[%emt 0:00:18]} 12. Qe3 {[%emt 0:00:34]} Be6 {[%emt 0:00:19]} 13. Rfd1 {[%emt 0:00:14]} Rfd8 {[%emt 0:00:11]} 14. Nd5 {[%emt 0:00:59]} Bxd5 {[%emt 0:00:19]} 15. Rxd5 {[%emt 0:00:10]} Rdc8 {[%emt 0:00:58]} 16. Rad1 {[%emt 0:00:17]} Rc6 {[%emt 0:00:09]} 17. c3 {[%emt 0:00:24]} h6 {[%emt 0:00:11]} 18. Nd2 {[%emt 0:00:12]} Na4 {[%emt 0:00:14]} 19. Rb1 {[%emt 0:00:20]} Qe6 {[%emt 0:00:23]} 20. c4 {[%emt 0:00:23]} Nb6 {[%emt 0:00:13]} 21. Rb5 {[%emt 0:00:14]} Nxc4 {[%emt 0:00:22]} 22. Nxc4 {[%emt 0:00:10]} Qxc4 {[%emt 0:00:09]} 23. Rxb7 {[%emt 0:00:12]} Qxa2 {[%emt 0:00:16]} 24. Rd1 {[%emt 0:00:16]} a5 {[%emt 0:00:30]} 25. g3 {[%emt 0:00:14]} Rac8 {[%emt 0:00:15]} 26. Kg2 {[%emt 0:00:11]} Qa4 {[%emt 0:00:14]} 27. Qf3 {[%emt 0:00:17]} Qc4 {[%emt 0:00:21]} 28. Rd3 {[%emt 0:00:09]} Qe6 {[%emt 0:00:10]} 29. Ra3 {[%emt 0:00:09]} Rc5 {[%emt 0:00:11]} 30. Ra7 {[%emt 0:00:10]} Rb8 {[%emt 0:00:10]} 31. R7xa5 {[%emt 0:00:13]} Rxa5 {[%emt 0:00:10]} 32. Rxa5 {[%emt 0:00:09]} Rxb2 {[%emt 0:00:11]} 33. Ra7 {[%emt 0:00:10]} Rb3 {[%emt 0:00:10]} 34. Qe2 {[%emt 0:00:11]} Rb8 {[%emt 0:00:10]} 35. Ra3 {[%emt 0:00:09]} Rd8 {[%emt 0:00:10]} 36. Rd3 {[%emt 0:00:09]} g6 {[%emt 0:00:09]} 37. Qf3 {[%emt 0:00:09]} Kg7 {[%emt 0:00:09]} 38. h4 {[%emt 0:00:09]} Qf6 {[%emt 0:00:08]} 39. Qe3 {[%emt 0:00:09]} Qe7 {[%emt 0:00:09]} 40. Qd2 {[%emt 0:00:09]} Qb7 {[%emt 0:00:09]} 41. Rd5 {[%emt 0:00:09]} Qc6 {[%emt 0:00:10]} 42. Qd3 {[%emt 0:00:09]} Rd7 {[%emt 0:00:10]} 43. Qf3 {[%emt 0:00:09]} Qc4 {[%emt 0:00:10]} 44. h5 {[%emt 0:00:10]} gxh5 {[%emt 0:00:10]} 45. Rd3 {[%emt 0:00:10]} Rd8 {[%emt 0:00:12]} 46. Rc3 {[%emt 0:00:09]} Qd4 {[%emt 0:00:09]} 47. Rd3 {[%emt 0:00:09]} Qb4 {[%emt 0:00:14]} 48. Re3 {[%emt 0:00:11]} Qb7 {[%emt 0:00:12]} 49. Qxh5 {[%emt 0:00:11]} Qe7 {[%emt 0:00:08]} 50. Qg4+ {[%emt 0:00:09]} Kf8 {[%emt 0:00:10]} 51. Qh5 {[%emt 0:00:10]} Qe6 {[%emt 0:00:09]} 52. Qf3 {[%emt 0:00:11]} Kg7 {[%emt 0:00:09]} 53. Rd3 {[%emt 0:00:09]} Rc8 {[%emt 0:00:10]} 54. Rd5 {[%emt 0:00:11]} Rc4 {[%emt 0:00:09]} 55. Rb5 {[%emt 0:00:10]} Qg6 {[%emt 0:00:09]} 56. Rb6 {[%emt 0:00:10]} Rd4 {[%emt 0:00:10]} 57. Rb7 {[%emt 0:00:10]} Rxe4 {[%emt 0:00:11]} 58. Rd7 {[%emt 0:00:09]} Rd4 {[%emt 0:00:10]} 59. Rd8 {[%emt 0:00:10]} Qe6 {[%emt 0:00:11]} 60. Kh2 {[%emt 0:00:12]} Rd2 {[%emt 0:00:10]} 61. Qe3 {[%emt 0:00:16]} Qf6 {[%emt 0:00:14]} 62. Qxd2 {[%emt 0:00:16]} Qxd8 {[%emt 0:00:09]} 63. Qd5 {[%emt 0:00:10]} Qf6 {[%emt 0:00:10]} 64. Kg2 {[%emt 0:00:09]} Qe6 {[%emt 0:00:08]} 65. Qe4 {[%emt 0:00:10]} d5 {[%emt 0:00:09]} 66. Qb4 {[%emt 0:00:10]} d4 {[%emt 0:00:09]} 67. Qd2 {[%emt 0:00:10]} Qd5+ {[%emt 0:00:09]} 68. f3 {[%emt 0:00:09]} e4 {[%emt 0:00:11]} 69. fxe4 {[%emt 0:00:09]} Qxe4+ {[%emt 0:00:08]} 70. Kh3 {[%emt 0:00:10]} d3 {[%emt 0:00:16]} 71. Qc3+ {[%emt 0:00:09]} Kh7 {[%emt 0:00:09]} 72. Qf6 {[%emt 0:00:11]} Qe6+ {[%emt 0:00:09]} 0-1

[Event "9th Bangabandhu Blitz Men 2021"]
[Site "Dhaka"]
[Date "2021.04.03"]
[Round "3.5"]
[White "Asaduzzaman, Ahad"]
[Black "Bappi, A.b."]
[Result "1/2-1/2"]
[ECO "B06"]
[WhiteElo "1742"]
[BlackElo "1854"]
[Annotator "NA"]
[PlyCount "28"]
[EventDate "2021.04.02"]
[EventType "swiss"]
[EventCountry "BAN"]
[SourceTitle "playchess.com"]
[Source "ChessBase"]
[SourceQuality "1"]
[TimeControl "1500+10"]

1. e4 {[%emt 0:22:07]} g6 {[%emt 0:22:07]} 2. d4 {[%emt 0:00:15]} Bg7 {[%emt 0:03:13]} 3. f4 {[%emt 0:00:10]} e6 {[%emt 0:00:00]} 4. Nf3 {[%emt 0:00:09]} d6 {[%emt 0:00:00]} 5. Bd3 {[%emt 0:00:15]} Ne7 {[%emt 0:00:00]} 6. O-O {[%emt 0:00:15]} O-O {[%emt 0:00:00]} 7. e5 {[%emt 0:00:11]} d5 {[%emt 0:00:00]} 8. c3 {[%emt 0:00:13]} b6 {[%emt 0:00:00]} 9. Na3 {[%emt 0:00:17]} Bb7 {[%emt 0:00:00]} 10. Nc2 {[%emt 0:00:10]} c5 {[%emt 0:01:20]} 11. Ne3 {[%emt 0:02:48]} Nbc6 {[%emt 0:00:10]} 12. Qe2 {[%emt 0:00:00]} Rc8 {[%emt 0:00:00]} 13. Bd2 {[%emt 0:00:20]} a5 {[%emt 0:00:00]} 14. Rac1 {[%emt 0:00:10]} c4 {[%emt 0:00:00]} 1/2-1/2

[Event "9th Bangabandhu Blitz Men 2021"]
[Site "Dhaka"]
[Date "2021.04.03"]
[Round "3.6"]
[White "Rahman, Ziaur"]
[Black "Jabed Al Azad"]
[Result "1-0"]
[ECO "D05"]
[WhiteElo "2432"]
[BlackElo "1983"]
[Annotator "ChessBase"]
[PlyCount "55"]
[EventDate "2021.04.02"]
[EventType "swiss"]
[EventCountry "BAN"]
[SourceTitle "playchess.com"]
[Source "ChessBase"]
[SourceQuality "1"]
[TimeControl "1500+10"]

1. d4 {[%emt 0:22:08]} d5 {[%emt 0:22:07]} 2. Nf3 {[%emt 0:00:11]} Nf6 {[%emt 0:00:08]} 3. e3 {[%emt 0:00:11]} c5 {[%emt 0:00:10]} 4. c3 {[%emt 0:00:15]} Nc6 {[%emt 0:00:08]} 5. dxc5 {[%emt 0:00:16]} a5 {[%emt 0:00:09]} 6. Bb5 {[%emt 0:00:10]} Ne4 {[%emt 0:00:27]} 7. b4 {[%emt 0:00:17]} e6 {[%emt 0:00:28]} 8. Bb2 {[%emt 0:00:17]} Be7 {[%emt 0:00:09]} 9. Nbd2 {[%emt 0:00:22]} Nxd2 {[%emt 0:00:22]} 10. Qxd2 {[%emt 0:00:11]} O-O {[%emt 0:00:09]} 11. O-O {[%emt 0:00:11]} Bf6 {[%emt 0:00:13]} 12. a3 {[%emt 0:00:10]} Qc7 {[%emt 0:00:14]} 13. c4 {[%emt 0:00:28]} Bxb2 {[%emt 0:00:17]} 14. Qxb2 {[%emt 0:00:10]} dxc4 {[%emt 0:00:16]} 15. Bxc4 {[%emt 0:00:09]} Rb8 {[%emt 0:00:48]} 16. b5 {[%emt 0:00:21]} Ne7 {[%emt 0:00:12]} 17. Qe5 {[%emt 0:00:17]} Qxe5 {[%emt 0:00:25]} 18. Nxe5 {[%emt 0:00:09]} f6 {[%emt 0:00:14]} 19. Nf3 {[%emt 0:00:16]} Kh8 {[%emt 0:00:28]} 20. a4 {[%emt 0:00:24]} e5 {[%emt 0:00:09]} 21. Nd2 {[%emt 0:00:09]} Bf5 {[%emt 0:00:11]} 22. e4 {[%emt 0:00:12]} Bg4 {[%emt 0:00:12]} 23. f3 {[%emt 0:00:10]} Bd7 {[%emt 0:00:12]} 24. Nb3 {[%emt 0:00:09]} Ra8 {[%emt 0:00:14]} 25. Rfd1 {[%emt 0:00:10]} Bc8 {[%emt 0:00:29]} 26. Rd6 {[%emt 0:00:13]} Ng6 {[%emt 0:00:16]} 27. Rad1 {[%emt 0:00:11]} h6 {[%emt 0:00:13]} 28. Rd8 {[%emt 0:00:10]} 1-0

[Event "9th Bangabandhu Blitz Men 2021"]
[Site "Dhaka"]
[Date "2021.04.03"]
[Round "3.8"]
[White "Hasan, Sk. Rashedul"]
[Black "Mohammad Minhaz Uddin"]
[Result "0-1"]
[ECO "C42"]
[WhiteElo "1918"]
[BlackElo "2281"]
[Annotator "ChessBase"]
[PlyCount "92"]
[EventDate "2021.04.02"]
[EventType "swiss"]
[EventCountry "BAN"]
[SourceTitle "playchess.com"]
[Source "ChessBase"]
[SourceQuality "1"]
[TimeControl "1500+10"]

1. e4 {[%emt 0:22:07]} e5 {[%emt 0:22:06]} 2. Nf3 {[%emt 0:00:10]} Nf6 {[%emt 0:00:09]} 3. Nxe5 {[%emt 0:00:15]} d6 {[%emt 0:00:09]} 4. Nf3 {[%emt 0:00:09]} Nxe4 {[%emt 0:00:09]} 5. Nc3 {[%emt 0:00:09]} Nxc3 {[%emt 0:00:10]} 6. dxc3 {[%emt 0:00:09]} Be7 {[%emt 0:00:10]} 7. Be3 {[%emt 0:00:10]} Nc6 {[%emt 0:00:09]} 8. Qd2 {[%emt 0:00:09]} Be6 {[%emt 0:00:09]} 9. Bd3 {[%emt 0:00:41]} Qd7 {[%emt 0:00:09]} 10. h3 {[%emt 0:00:11]} Ne5 {[%emt 0:00:17]} 11. Nxe5 {[%emt 0:00:32]} dxe5 {[%emt 0:00:10]} 12. Qe2 {[%emt 0:00:26]} O-O {[%emt 0:00:28]} 13. O-O-O {[%emt 0:00:11]} Qa4 {[%emt 0:00:12]} 14. a3 {[%emt 0:00:17]} a6 {[%emt 0:00:37]} 15. Qh5 {[%emt 0:00:12]} f5 {[%emt 0:00:11]} 16. g4 {[%emt 0:00:20]} e4 {[%emt 0:01:05]} 17. Be2 {[%emt 0:00:29]} f4 {[%emt 0:01:04]} 18. Bc5 {[%emt 0:00:20]} Bxc5 {[%emt 0:00:19]} 19. Qxc5 {[%emt 0:00:09]} f3 {[%emt 0:00:13]} 20. Rd4 {[%emt 0:00:19]} Qe8 {[%emt 0:00:13]} 21. Bc4 {[%emt 0:00:10]} Bf7 {[%emt 0:00:15]} 22. Qxc7 {[%emt 0:00:16]} e3 {[%emt 0:00:09]} 23. fxe3 {[%emt 0:00:15]} Rc8 {[%emt 0:00:10]} 24. Bxf7+ {[%emt 0:00:15]} Rxf7 {[%emt 0:00:08]} 25. Qb6 {[%emt 0:00:15]} Qxe3+ {[%emt 0:00:09]} 26. Kb1 {[%emt 0:00:09]} Re8 {[%emt 0:00:09]} 27. Qb3 {[%emt 0:00:13]} f2 {[%emt 0:00:10]} 28. Rdd1 {[%emt 0:00:11]} Ref8 {[%emt 0:00:17]} 29. Rhf1 {[%emt 0:00:10]} Kh8 {[%emt 0:00:09]} 30. Ka2 {[%emt 0:00:12]} h6 {[%emt 0:00:09]} 31. h4 {[%emt 0:00:18]} Qg3 {[%emt 0:00:10]} 32. g5 {[%emt 0:00:13]} h5 {[%emt 0:00:09]} 33. g6 {[%emt 0:00:09]} Re7 {[%emt 0:00:10]} 34. Rd3 {[%emt 0:00:14]} Qxg6 {[%emt 0:00:10]} 35. Rd2 {[%emt 0:00:11]} Ref7 {[%emt 0:00:09]} 36. Qd5 {[%emt 0:00:14]} Rf5 {[%emt 0:00:12]} 37. Qd4 {[%emt 0:00:10]} Qg2 {[%emt 0:00:10]} 38. Rdd1 {[%emt 0:00:09]} R8f7 {[%emt 0:00:11]} 39. Qd8+ {[%emt 0:00:09]} Kh7 {[%emt 0:00:08]} 40. Qd3 {[%emt 0:00:09]} g6 {[%emt 0:00:12]} 41. Qc4 {[%emt 0:00:11]} b5 {[%emt 0:00:11]} 42. Qc6 {[%emt 0:00:09]} Qxc6 {[%emt 0:00:09]} 43. Rd2 {[%emt 0:00:09]} Qc4+ {[%emt 0:00:09]} 44. Kb1 {[%emt 0:00:09]} Qxf1+ {[%emt 0:00:09]} 45. Ka2 {[%emt 0:00:08]} Qc4+ {[%emt 0:00:09]} 46. b3 {[%emt 0:00:09]} Qxc3 {[%emt 0:00:09]} 0-1

[Event "9th Bangabandhu Blitz Men 2021"]
[Site "Dhaka"]
[Date "2021.04.03"]
[Round "4.1"]
[White "Reefat, Bin-Sattar"]
[Black "Mohammad Fahad, Rahman"]
[Result "1-0"]
[ECO "B20"]
[WhiteElo "2401"]
[BlackElo "2321"]
[Annotator "ChessBase"]
[PlyCount "97"]
[EventDate "2021.04.02"]
[EventType "swiss"]
[EventCountry "BAN"]
[SourceTitle "playchess.com"]
[Source "ChessBase"]
[SourceQuality "1"]
[TimeControl "1500+10"]

1. e4 {[%emt 0:22:08]} c5 {[%emt 0:22:11]} 2. b3 {[%emt 0:00:10]} Nf6 {[%emt 0:00:10]} 3. e5 {[%emt 0:00:09]} Nd5 {[%emt 0:00:09]} 4. Bb2 {[%emt 0:00:09]} g6 {[%emt 0:00:16]} 5. g3 {[%emt 0:01:33]} Bg7 {[%emt 0:00:11]} 6. Bg2 {[%emt 0:00:09]} Nc7 {[%emt 0:00:14]} 7. f4 {[%emt 0:00:12]} O-O {[%emt 0:00:11]} 8. Nf3 {[%emt 0:00:11]} Nc6 {[%emt 0:00:16]} 9. O-O {[%emt 0:00:17]} d6 {[%emt 0:00:20]} 10. d3 {[%emt 0:00:48]} Bg4 {[%emt 0:00:39]} 11. Qe1 {[%emt 0:00:09]} dxe5 {[%emt 0:00:39]} 12. Nxe5 {[%emt 0:00:16]} Nxe5 {[%emt 0:00:11]} 13. fxe5 {[%emt 0:00:12]} Rb8 {[%emt 0:00:18]} 14. Nd2 {[%emt 0:00:11]} Qd7 {[%emt 0:00:20]} 15. Ne4 {[%emt 0:00:21]} b6 {[%emt 0:00:09]} 16. Rf4 {[%emt 0:00:18]} Nd5 {[%emt 0:00:12]} 17. Rf2 {[%emt 0:00:17]} Bh6 {[%emt 0:00:09]} 18. Bc1 {[%emt 0:00:18]} Bg7 {[%emt 0:00:11]} 19. Bb2 {[%emt 0:00:10]} Rbd8 {[%emt 0:00:13]} 20. a3 {[%emt 0:00:22]} Rc8 {[%emt 0:00:24]} 21. Qd2 {[%emt 0:00:10]} b5 {[%emt 0:00:16]} 22. Re1 {[%emt 0:00:01]} Nb6 {[%emt 0:00:17]} 23. Qf4 {[%emt 0:00:12]} Be6 {[%emt 0:00:10]} 24. Ng5 {[%emt 0:00:10]} Bh6 {[%emt 0:00:13]} 25. Qh4 {[%emt 0:00:10]} Bxg5 {[%emt 0:00:09]} 26. Qxg5 {[%emt 0:00:17]} c4 {[%emt 0:00:10]} 27. dxc4 {[%emt 0:00:03]} bxc4 {[%emt 0:00:09]} 28. b4 {[%emt 0:00:11]} c3 {[%emt 0:00:12]} 29. Bc1 {[%emt 0:00:08]} Nc4 {[%emt 0:00:08]} 30. Rf4 {[%emt 0:00:14]} Rfd8 {[%emt 0:00:12]} 31. Rh4 {[%emt 0:00:11]} h5 {[%emt 0:00:12]} 32. Rxh5 {[%emt 0:00:10]} Qd4+ {[%emt 0:00:11]} 33. Kh1 {[%emt 0:00:10]} Qg4 {[%emt 0:00:09]} 34. Qxg4 Bxg4 {[%emt 0:00:09]} 35. Rh4 {[%emt 0:00:18]} Bf5 {[%emt 0:00:08]} 36. Bg5 {[%emt 0:00:10]} Rd7 {[%emt 0:00:17]} 37. Kg1 {[%emt 0:00:10]} Nxa3 {[%emt 0:00:09]} 38. g4 {[%emt 0:00:11]} Be6 {[%emt 0:00:12]} 39. Be4 {[%emt 0:00:09]} Nc4 {[%emt 0:00:09]} 40. Bd3 {[%emt 0:00:09]} Nd2 {[%emt 0:00:12]} 41. Re3 {[%emt 0:00:09]} Bd5 {[%emt 0:00:23]} 42. Kf2 {[%emt 0:00:10]} f6 {[%emt 0:00:12]} 43. exf6 exf6 {[%emt 0:00:09]} 44. Bxf6 {[%emt 0:00:18]} Rh7 {[%emt 0:00:14]} 45. Rxh7 Kxh7 46. g5 {[%emt 0:00:18]} Rc6 {[%emt 0:00:24]} 47. Re7+ {[%emt 0:00:11]} Kg8 {[%emt 0:00:09]} 48. Bxg6 {[%emt 0:00:10]} Rc8 {[%emt 0:00:12]} 49. Rh7 {[%emt 0:00:10]} 1-0

[Event "9th Bangabandhu Blitz Men 2021"]
[Site "Dhaka"]
[Date "2021.04.03"]
[Round "4.2"]
[White "Zia, Tahsin Tajwar"]
[Black "Hossain, Enamul"]
[Result "0-1"]
[ECO "D73"]
[WhiteElo "2170"]
[BlackElo "2404"]
[Annotator "ChessBase"]
[PlyCount "95"]
[EventDate "2021.04.02"]
[EventType "swiss"]
[EventCountry "BAN"]
[SourceTitle "playchess.com"]
[Source "ChessBase"]
[SourceQuality "1"]
[TimeControl "1500+10"]

1. Nf3 {[%emt 0:22:16]} d5 {[%emt 0:22:10]} 2. d4 {[%emt 0:00:15]} Nf6 {[%emt 0:00:11]} 3. g3 {[%emt 0:00:09]} g6 {[%emt 0:00:11]} 4. Bg2 {[%emt 0:00:09]} Bg7 {[%emt 0:00:09]} 5. O-O {[%emt 0:03:01]} c6 6. c4 {[%emt 0:00:00]} dxc4 {[%emt 0:00:18]} 7. a4 {[%emt 0:00:00]} Ne4 {[%emt 0:00:10]} 8. Qc2 {[%emt 0:00:00]} Nd6 {[%emt 0:00:11]} 9. Nbd2 {[%emt 0:00:00]} Na6 {[%emt 0:00:17]} 10. Nxc4 {[%emt 0:00:00]} Nb4 {[%emt 0:00:12]} 11. Qb3 {[%emt 0:00:00]} a5 {[%emt 0:00:12]} 12. Nxd6+ {[%emt 0:00:00]} Qxd6 {[%emt 0:00:20]} 13. Bf4 {[%emt 0:00:00]} Qd5 {[%emt 0:00:17]} 14. Qc3 {[%emt 0:00:06]} O-O {[%emt 0:00:22]} 15. Rfd1 {[%emt 0:00:28]} Bf5 {[%emt 0:00:26]} 16. Ne5 {[%emt 0:00:16]} Qd8 {[%emt 0:00:11]} 17. e4 {[%emt 0:00:11]} Be6 {[%emt 0:00:15]} 18. h4 {[%emt 0:00:14]} f6 {[%emt 0:00:41]} 19. Nf3 {[%emt 0:00:12]} Bg4 {[%emt 0:00:17]} 20. Rd2 {[%emt 0:00:18]} Kh8 {[%emt 0:00:11]} 21. Nh2 {[%emt 0:00:14]} Bd7 {[%emt 0:00:12]} 22. Rad1 {[%emt 0:00:10]} f5 {[%emt 0:00:12]} 23. e5 {[%emt 0:00:14]} Be6 {[%emt 0:00:10]} 24. h5 {[%emt 0:00:18]} Bd5 {[%emt 0:00:13]} 25. h6 {[%emt 0:00:19]} Bf6 {[%emt 0:00:17]} 26. exf6 {[%emt 0:00:10]} exf6 {[%emt 0:00:09]} 27. Qc5 {[%emt 0:00:16]} g5 {[%emt 0:00:12]} 28. Be3 {[%emt 0:00:12]} Re8 {[%emt 0:00:13]} 29. Nf3 {[%emt 0:00:11]} Rg8 {[%emt 0:00:21]} 30. Ne1 {[%emt 0:00:10]} f4 {[%emt 0:00:10]} 31. gxf4 {[%emt 0:00:13]} gxf4 {[%emt 0:00:09]} 32. Bxf4 {[%emt 0:00:09]} Qd7 {[%emt 0:00:12]} 33. Qd6 {[%emt 0:00:14]} Qf5 {[%emt 0:00:11]} 34. Bg3 {[%emt 0:00:10]} Rg6 {[%emt 0:00:12]} 35. Qf4 {[%emt 0:00:11]} Qh5 {[%emt 0:00:11]} 36. Bf3 {[%emt 0:00:10]} Qxh6 {[%emt 0:00:14]} 37. Qxh6 {[%emt 0:00:09]} Rxh6 {[%emt 0:00:08]} 38. Bxd5 {[%emt 0:00:09]} Nxd5 {[%emt 0:00:09]} 39. Nd3 {[%emt 0:00:10]} Rg8 {[%emt 0:00:10]} 40. Nc5 {[%emt 0:00:11]} f5 {[%emt 0:00:09]} 41. Kf1 {[%emt 0:00:12]} f4 {[%emt 0:00:09]} 42. Rd3 {[%emt 0:00:10]} fxg3 43. Rxg3 {[%emt 0:00:09]} Rxg3 {[%emt 0:00:24]} 44. fxg3 {[%emt 0:00:09]} Ne3+ 45. Ke2 {[%emt 0:00:10]} Nxd1 46. Kxd1 {[%emt 0:00:09]} Rg6 {[%emt 0:00:27]} 47. Nxb7 {[%emt 0:00:09]} Rxg3 {[%emt 0:00:09]} 48. Nxa5 {[%emt 0:00:09]} 0-1